[Event "Kvibergspelen 2022"]
[Site "Kviberg Park Hotel & Conference, Krutvagen 2, Gothenburg, Sweden"]
[Date "2022.09.30"]
[Round "3.3"]
[White "Briem, Stephan"]
[Black "Abdrlauf, Elham"]
[Result "0-1"]
[TimeControl "15 minutes + 5 seconds per move from move one (Round 1 - 4) / 90 minutes + 30 seconds per move from move one (Round 5 - 8)"]
[BlackTitle "IM"]
[WhiteFideId "2312506"]
[BlackFideId "1533533"]
[WhiteElo "2083"]
[BlackElo "2487"]

1. d4 {[%clk 00:15:08]} {[%emt 00:00:02]} Nf6 {[%clk 00:15:09]} {[%emt
00:00:01]} 2. c4 {[%clk 00:15:10]} {[%emt 00:00:04]} e6 {[%clk 00:15:12]} 3.
Nc3 {[%clk 00:15:13]} {[%emt 00:00:02]} d5 {[%clk 00:15:15]} {[%emt 00:00:02]}
4. cxd5 {[%clk 00:15:15]} {[%emt 00:00:03]} exd5 {[%clk 00:15:19]} 5. Bg5
{[%clk 00:15:19]} c6 {[%clk 00:15:23]} 6. Qc2 {[%clk 00:15:18]} {[%emt
00:00:07]} Bd6 {[%clk 00:15:22]} {[%emt 00:00:05]} 7. e3 {[%clk 00:15:17]}
{[%emt 00:00:07]} O-O {[%clk 00:15:25]} {[%emt 00:00:02]} 8. Bd3 {[%clk
00:15:14]} {[%emt 00:00:08]} h6 {[%clk 00:15:29]} 9. Bh4 {[%clk 00:15:10]}
{[%emt 00:00:09]} Re8 {[%clk 00:15:32]} {[%emt 00:00:02]} 10. Bg3 {[%clk
00:14:21]} {[%emt 00:00:55]} Bxg3 {[%clk 00:15:10]} {[%emt 00:00:26]} 11. hxg3
{[%clk 00:14:23]} {[%emt 00:00:03]} c5 {[%clk 00:15:13]} {[%emt 00:00:03]} 12.
Nf3 {[%clk 00:11:13]} {[%emt 00:03:16]} c4 {[%clk 00:14:53]} {[%emt 00:00:24]}
13. Bf5 {[%clk 00:10:45]} {[%emt 00:00:34]} Nc6 {[%clk 00:14:56]} {[%emt
00:00:02]} 14. a3 {[%clk 00:10:01]} {[%emt 00:00:49]} a6 {[%clk 00:12:00]}
{[%emt 00:03:01]} 15. O-O {[%clk 00:07:41]} {[%emt 00:02:26]} b5 {[%clk
00:12:01]} {[%emt 00:00:02]} 16. Bxc8 {[%clk 00:06:40]} {[%emt 00:01:06]} Qxc8
{[%clk 00:11:50]} {[%emt 00:00:16]} 17. Rfd1 {[%clk 00:05:05]} {[%emt
00:01:41]} Rb8 {[%clk 00:11:20]} {[%emt 00:00:35]} 18. b3 {[%clk 00:03:16]}
{[%emt 00:01:53]} b4 {[%clk 00:09:51]} {[%emt 00:01:35]} 19. Na4 {[%clk
00:02:56]} {[%emt 00:00:25]} cxb3 {[%clk 00:09:18]} {[%emt 00:00:38]} 20. Qxb3
{[%clk 00:02:46]} {[%emt 00:00:15]} Na5 {[%clk 00:09:22]} 21. Qd3 {[%clk
00:02:39]} {[%emt 00:00:12]} b3 {[%clk 00:09:21]} {[%emt 00:00:06]} 22. Nc5
{[%clk 00:02:30]} {[%emt 00:00:14]} b2 {[%clk 00:09:21]} {[%emt 00:00:04]} 23.
Rab1 {[%clk 00:02:27]} {[%emt 00:00:09]} Ne4 {[%clk 00:08:10]} {[%emt
00:01:16]} 24. Na4 {[%clk 00:00:31]} {[%emt 00:02:01]} Rb3 {[%clk 00:07:16]}
{[%emt 00:00:59]} 25. Qe2 {[%clk 00:00:15]} {[%emt 00:00:21]} Qc4 {[%clk
00:05:47]} {[%emt 00:01:34]} 26. Qxc4 {[%clk 00:00:06]} {[%emt 00:00:14]} Nxc4
{[%clk 00:05:50]} {[%emt 00:00:01]} 27. Ne1 {[%clk 00:00:07]} {[%emt 00:00:05]}
Ned2 {[%clk 00:05:22]} {[%emt 00:00:33]} 28. Rxb2 {[%clk 00:00:06]} {[%emt
00:00:06]} Nxb2 {[%clk 00:05:23]} {[%emt 00:00:04]} 0-1

[Event "Kvibergspelen 2022"]
[Site "Kviberg Park Hotel & Conference, Krutvagen 2, Gothenburg, Sweden"]
[Date "2022.09.30"]
[Round "3.4"]
[White "Kucuksari, Kaan"]
[Black "Strom-Engdahl, Alexander"]
[Result "1/2-1/2"]
[TimeControl "15 minutes + 5 seconds per move from move one (Round 1 - 4) / 90 minutes + 30 seconds per move from move one (Round 5 - 8)"]
[WhiteTitle "FM"]
[WhiteFideId "6380166"]
[BlackFideId "1741586"]
[WhiteElo "2482"]
[BlackElo "2114"]

1. d4 {[%clk 00:15:08]} Nf6 {[%clk 00:15:03]} {[%emt 00:00:08]} 2. c4 {[%clk
00:15:09]} {[%emt 00:00:04]} e6 {[%clk 00:15:04]} {[%emt 00:00:04]} 3. Nf3
{[%clk 00:15:11]} {[%emt 00:00:03]} d5 {[%clk 00:14:58]} {[%emt 00:00:12]} 4.
g3 {[%clk 00:15:14]} {[%emt 00:00:01]} Be7 {[%clk 00:14:59]} {[%emt 00:00:04]}
5. Bg2 {[%clk 00:15:17]} {[%emt 00:00:02]} O-O {[%clk 00:15:00]} {[%emt
00:00:04]} 6. O-O {[%clk 00:15:19]} {[%emt 00:00:03]} Nbd7 {[%clk 00:14:57]}
{[%emt 00:00:08]} 7. Qc2 {[%clk 00:15:16]} {[%emt 00:00:07]} c5 {[%clk
00:14:44]} {[%emt 00:00:18]} 8. cxd5 {[%clk 00:15:14]} {[%emt 00:00:06]} exd5
{[%clk 00:14:44]} {[%emt 00:00:06]} 9. dxc5 {[%clk 00:15:13]} {[%emt 00:00:06]}
Nxc5 {[%clk 00:14:37]} {[%emt 00:00:12]} 10. Nc3 {[%clk 00:15:10]} {[%emt
00:00:08]} Nce4 {[%clk 00:14:22]} {[%emt 00:00:20]} 11. Nd4 {[%clk 00:14:45]}
{[%emt 00:00:30]} Nxc3 {[%clk 00:13:48]} {[%emt 00:00:39]} 12. Qxc3 {[%clk
00:14:38]} {[%emt 00:00:12]} Bd7 {[%clk 00:13:44]} {[%emt 00:00:09]} 13. Bf4
{[%clk 00:14:26]} {[%emt 00:00:17]} Rc8 {[%clk 00:13:38]} {[%emt 00:00:11]} 14.
Qb3 {[%clk 00:14:26]} {[%emt 00:00:05]} Bc6 {[%clk 00:13:39]} {[%emt 00:00:04]}
15. Rac1 {[%clk 00:14:21]} {[%emt 00:00:10]} Qd7 {[%clk 00:13:11]} {[%emt
00:00:33]} 16. Qd3 {[%clk 00:14:02]} {[%emt 00:00:24]} Rfe8 {[%clk 00:12:22]}
{[%emt 00:00:55]} 17. Rfd1 {[%clk 00:13:47]} {[%emt 00:00:19]} Qg4 {[%clk
00:11:52]} {[%emt 00:00:34]} 18. h3 {[%clk 00:13:20]} {[%emt 00:00:32]} Qg6
{[%clk 00:11:40]} {[%emt 00:00:17]} 19. Nxc6 {[%clk 00:10:29]} {[%emt
00:02:58]} bxc6 {[%clk 00:11:10]} {[%emt 00:00:34]} 20. Qa6 {[%clk 00:10:31]}
{[%emt 00:00:03]} Ne4 {[%clk 00:09:48]} {[%emt 00:01:27]} 21. Qxa7 {[%clk
00:10:10]} {[%emt 00:00:26]} Qf6 {[%clk 00:08:35]} {[%emt 00:01:17]} 22. Qd4
{[%clk 00:08:21]} {[%emt 00:01:54]} Qxd4 {[%clk 00:06:49]} {[%emt 00:01:52]} 23.
Rxd4 {[%clk 00:08:25]} {[%emt 00:00:02]} Bf6 {[%clk 00:06:43]} {[%emt
00:00:10]} 24. Rb4 {[%clk 00:08:02]} {[%emt 00:00:27]} g5 {[%clk 00:06:39]}
{[%emt 00:00:10]} 25. Bxe4 {[%clk 00:06:52]} {[%emt 00:01:15]} gxf4 {[%clk
00:06:33]} {[%emt 00:00:11]} 26. Bf5 {[%clk 00:06:37]} {[%emt 00:00:19]} Rc7
{[%clk 00:05:58]} {[%emt 00:00:41]} 27. Bd3 {[%clk 00:03:12]} {[%emt 00:03:30]}
fxg3 {[%clk 00:05:46]} {[%emt 00:00:17]} 28. fxg3 {[%clk 00:03:14]} {[%emt
00:00:03]} h5 {[%clk 00:04:48]} {[%emt 00:01:03]} 29. b3 {[%clk 00:03:10]}
{[%emt 00:00:10]} Bg5 {[%clk 00:03:56]} {[%emt 00:00:56]} 30. Rc2 {[%clk
00:02:57]} {[%emt 00:00:17]} Be3+ {[%clk 00:03:46]} {[%emt 00:00:16]} 31. Kg2
{[%clk 00:03:00]} {[%emt 00:00:02]} Re6 {[%clk 00:03:46]} {[%emt 00:00:05]} 32.
Bf5 {[%clk 00:01:42]} {[%emt 00:01:23]} Rf6 {[%clk 00:03:17]} {[%emt 00:00:36]}
33. g4 {[%clk 00:01:45]} {[%emt 00:00:01]} hxg4 {[%clk 00:03:18]} {[%emt
00:00:04]} 34. hxg4 {[%clk 00:01:48]} {[%emt 00:00:02]} Kg7 {[%clk 00:02:25]}
{[%emt 00:00:58]} 35. Rb8 {[%clk 00:01:37]} {[%emt 00:00:15]} Ra7 {[%clk
00:01:59]} {[%emt 00:00:32]} 36. a4 {[%clk 00:01:38]} {[%emt 00:00:04]} Re7
{[%clk 00:01:23]} {[%emt 00:00:41]} 37. a5 {[%clk 00:01:32]} {[%emt 00:00:11]}
Rh6 {[%clk 00:01:16]} {[%emt 00:00:11]} 38. Rb4 {[%clk 00:00:42]} {[%emt
00:00:55]} c5 {[%clk 00:01:12]} {[%emt 00:00:10]} 39. Rb6 {[%clk 00:00:33]}
{[%emt 00:00:12]} Rxb6 {[%clk 00:00:55]} {[%emt 00:00:24]} 40. axb6 {[%clk
00:00:37]} {[%emt 00:00:01]} c4 {[%clk 00:00:57]} {[%emt 00:00:03]} 41. bxc4
{[%clk 00:00:32]} {[%emt 00:00:10]} dxc4 {[%clk 00:01:00]} {[%emt 00:00:02]} 42.
Rxc4 {[%clk 00:00:28]} {[%emt 00:00:08]} Bxb6 {[%clk 00:01:03]} {[%emt
00:00:03]} 43. Bd3 {[%clk 00:00:28]} {[%emt 00:00:04]} Be3 {[%clk 00:00:59]}
{[%emt 00:00:09]} 44. Kf3 {[%clk 00:00:32]} {[%emt 00:00:02]} Bg5 {[%clk
00:01:01]} {[%emt 00:00:02]} 45. Rc5 {[%clk 00:00:35]} {[%emt 00:00:02]} f6
{[%clk 00:00:54]} {[%emt 00:00:13]} 46. Rd5 {[%clk 00:00:32]} {[%emt 00:00:06]}
Re3+ {[%clk 00:00:57]} {[%emt 00:00:04]} 47. Kf2 {[%clk 00:00:35]} {[%emt
00:00:02]} Re5 {[%clk 00:00:41]} {[%emt 00:00:21]} 48. Rd7+ {[%clk 00:00:38]}
{[%emt 00:00:02]} Kf8 {[%clk 00:00:44]} {[%emt 00:00:03]} 49. Bf5 {[%clk
00:00:38]} {[%emt 00:00:05]} Ke8 {[%clk 00:00:45]} {[%emt 00:00:04]} 50. Rb7
{[%clk 00:00:41]} {[%emt 00:00:02]} Re3 {[%clk 00:00:42]} {[%emt 00:00:08]} 51.
Bd3 {[%clk 00:00:42]} {[%emt 00:00:05]} Kd8 {[%clk 00:00:43]} {[%emt 00:00:03]}
52. Rg7 {[%clk 00:00:33]} {[%emt 00:00:13]} Rh3 {[%clk 00:00:30]} {[%emt
00:00:19]} 53. Bb5 {[%clk 00:00:27]} {[%emt 00:00:11]} Rb3 {[%clk 00:00:30]}
{[%emt 00:00:05]} 54. Bd3 {[%clk 00:00:30]} {[%emt 00:00:03]} Ke8 {[%clk
00:00:31]} {[%emt 00:00:03]} 55. Rg8+ {[%clk 00:00:32]} {[%emt 00:00:03]} Ke7
{[%clk 00:00:33]} {[%emt 00:00:04]} 56. Rg7+ {[%clk 00:00:31]} {[%emt
00:00:05]} Kf8 {[%clk 00:00:33]} {[%emt 00:00:05]} 57. Rc7 {[%clk 00:00:31]}
{[%emt 00:00:04]} Rb2 {[%clk 00:00:20]} {[%emt 00:00:19]} 58. Kf3 {[%clk
00:00:34]} {[%emt 00:00:02]} Rb3 {[%clk 00:00:23]} {[%emt 00:00:02]} 59. Ke4
{[%clk 00:00:35]} {[%emt 00:00:03]} Rb4+ {[%clk 00:00:15]} {[%emt 00:00:14]} 60.
Bc4 {[%clk 00:00:39]} {[%emt 00:00:01]} Ke8 {[%clk 00:00:16]} {[%emt 00:00:04]}
61. Kd5 {[%clk 00:00:36]} {[%emt 00:00:08]} Kd8 {[%clk 00:00:17]} {[%emt
00:00:04]} 62. Rg7 {[%clk 00:00:32]} {[%emt 00:00:07]} Rb2 {[%clk 00:00:18]}
{[%emt 00:00:06]} 63. Kd6 {[%clk 00:00:22]} {[%emt 00:00:15]} Rb6+ {[%clk
00:00:21]} {[%emt 00:00:02]} 64. Kc5 {[%clk 00:00:23]} {[%emt 00:00:01]} Be3+
{[%clk 00:00:17]} {[%emt 00:00:12]} 65. Kd5 {[%clk 00:00:27]} Bg5 {[%clk
00:00:19]} {[%emt 00:00:03]} 66. e4 {[%clk 00:00:24]} {[%emt 00:00:08]} Bf4
{[%clk 00:00:14]} {[%emt 00:00:10]} 67. Rh7 {[%clk 00:00:21]} {[%emt 00:00:08]}
Rd6+ {[%clk 00:00:18]} {[%emt 00:00:02]} 68. Kc5 {[%clk 00:00:25]} Rd7 {[%clk
00:00:19]} {[%emt 00:00:04]} 69. Rh8+ {[%clk 00:00:25]} {[%emt 00:00:03]} Kc7
{[%clk 00:00:22]} {[%emt 00:00:03]} 70. Be6 {[%clk 00:00:19]} {[%emt 00:00:11]}
Be3+ {[%clk 00:00:15]} {[%emt 00:00:12]} 71. Kb5 {[%clk 00:00:22]} {[%emt
00:00:01]} Re7 {[%clk 00:00:19]} 72. Bf5 {[%clk 00:00:12]} {[%emt 00:00:16]}
Kd6 {[%clk 00:00:21]} {[%emt 00:00:03]} 73. Kc4 {[%clk 00:00:15]} {[%emt
00:00:01]} Ke5 {[%clk 00:00:21]} {[%emt 00:00:06]} 74. Kd3 {[%clk 00:00:18]}
{[%emt 00:00:02]} Bg5 {[%clk 00:00:24]} {[%emt 00:00:01]} 75. Rd8 {[%clk
00:00:17]} {[%emt 00:00:07]} Ra7 {[%clk 00:00:26]} {[%emt 00:00:03]} 76. Kc4
{[%clk 00:00:18]} {[%emt 00:00:03]} Rc7+ {[%clk 00:00:29]} {[%emt 00:00:03]} 77.
Kb5 {[%clk 00:00:22]} Rb7+ {[%clk 00:00:33]} {[%emt 00:00:01]} 78. Kc6 {[%clk
00:00:25]} Rb1 {[%clk 00:00:33]} {[%emt 00:00:05]} 79. Rd5+ {[%clk 00:00:24]}
{[%emt 00:00:07]} Kf4 {[%clk 00:00:36]} {[%emt 00:00:03]} 80. Kd6 {[%clk
00:00:25]} {[%emt 00:00:01]} Rb6+ {[%clk 00:00:39]} {[%emt 00:00:04]} 81. Ke7
{[%clk 00:00:27]} Rb7+ {[%clk 00:00:43]} {[%emt 00:00:03]} 82. Kf8 {[%clk
00:00:28]} {[%emt 00:00:04]} Ra7 {[%clk 00:00:38]} {[%emt 00:00:11]} 83. Rb5
{[%clk 00:00:29]} {[%emt 00:00:02]} Rc7 {[%clk 00:00:41]} {[%emt 00:00:03]} 84.
Ke8 {[%clk 00:00:31]} {[%emt 00:00:04]} Ra7 {[%clk 00:00:44]} {[%emt 00:00:02]}
85. Rb4 {[%clk 00:00:27]} {[%emt 00:00:08]} Ke5 {[%clk 00:00:39]} {[%emt
00:00:10]} 86. Bd7 {[%clk 00:00:24]} {[%emt 00:00:07]} Ra8+ {[%clk 00:00:39]}
{[%emt 00:00:06]} 87. Kf7 {[%clk 00:00:25]} {[%emt 00:00:02]} Ra7 {[%clk
00:00:43]} {[%emt 00:00:03]} 88. Ke8 {[%clk 00:00:15]} {[%emt 00:00:15]} Ra8+
{[%clk 00:00:47]} 89. Kf7 {[%clk 00:00:17]} {[%emt 00:00:04]} Ra7 {[%clk
00:00:51]} 90. Rb5+ {[%clk 00:00:19]} {[%emt 00:00:03]} Kxe4 {[%clk 00:00:49]}
{[%emt 00:00:07]} 91. Ke6 {[%clk 00:00:19]} {[%emt 00:00:04]} Ra6+ {[%clk
00:00:49]} {[%emt 00:00:06]} 92. Ke7 {[%clk 00:00:18]} {[%emt 00:00:04]} Ra7
{[%clk 00:00:46]} {[%emt 00:00:09]} 93. Rf5 {[%clk 00:00:19]} {[%emt 00:00:04]}
Ra6 {[%clk 00:00:48]} {[%emt 00:00:04]} 94. Bc8 {[%clk 00:00:20]} {[%emt
00:00:03]} Ra7+ {[%clk 00:00:49]} {[%emt 00:00:04]} 95. Ke6 {[%clk 00:00:23]}
{[%emt 00:00:01]} Rc7 {[%clk 00:00:45]} {[%emt 00:00:09]} 96. Bd7 {[%clk
00:00:25]} {[%emt 00:00:01]} Rc3 {[%clk 00:00:40]} {[%emt 00:00:12]} 97. Bb5
{[%clk 00:00:22]} {[%emt 00:00:05]} Rg3 {[%clk 00:00:32]} {[%emt 00:00:16]} 98.
Be2 {[%clk 00:00:21]} {[%emt 00:00:03]} Re3 {[%clk 00:00:32]} {[%emt 00:00:08]}
99. Bd1 {[%clk 00:00:22]} {[%emt 00:00:02]} Kd4+ {[%clk 00:00:32]} {[%emt
00:00:07]} 100. Kf7 {[%clk 00:00:26]} Re5 {[%clk 00:00:29]} {[%emt 00:00:08]}
101. Rf1 {[%clk 00:00:26]} {[%emt 00:00:05]} Ra5 {[%clk 00:00:21]} {[%emt
00:00:13]} 102. Bc2 {[%clk 00:00:29]} {[%emt 00:00:02]} Ke3 {[%clk 00:00:23]}
{[%emt 00:00:03]} 103. Bf5 {[%clk 00:00:32]} {[%emt 00:00:02]} Ke2 {[%clk
00:00:24]} {[%emt 00:00:04]} 104. Rb1 {[%clk 00:00:36]} {[%emt 00:00:01]} Ra7+
{[%clk 00:00:26]} {[%emt 00:00:04]} 105. Ke6 {[%clk 00:00:38]} {[%emt
00:00:02]} Ke3 {[%clk 00:00:28]} {[%emt 00:00:04]} 106. Rb5 {[%clk 00:00:39]}
{[%emt 00:00:04]} Kf4 {[%clk 00:00:30]} {[%emt 00:00:04]} 107. Kd5 {[%clk
00:00:41]} {[%emt 00:00:02]} Re7 {[%clk 00:00:28]} {[%emt 00:00:06]} 108. Rb4+
{[%clk 00:00:45]} {[%emt 00:00:02]} Kf3 {[%clk 00:00:32]} {[%emt 00:00:02]} 109.
Be6 {[%clk 00:00:46]} {[%emt 00:00:03]} Kg3 {[%clk 00:00:30]} {[%emt 00:00:06]}
110. Ra4 {[%clk 00:00:36]} {[%emt 00:00:15]} Rb7 {[%clk 00:00:30]} {[%emt
00:00:07]} 111. Ke4 {[%clk 00:00:38]} {[%emt 00:00:01]} Rb6 {[%clk 00:00:26]}
{[%emt 00:00:10]} 112. Ra3+ {[%clk 00:00:41]} {[%emt 00:00:02]} Kf2 {[%clk
00:00:27]} {[%emt 00:00:02]} 113. Bc4 {[%clk 00:00:41]} {[%emt 00:00:05]} Rb2
{[%clk 00:00:27]} {[%emt 00:00:07]} 114. Rf3+ {[%clk 00:00:18]} {[%emt
00:00:28]} Kg2 {[%clk 00:00:28]} {[%emt 00:00:04]} 115. Rd3 {[%clk 00:00:18]}
{[%emt 00:00:03]} Re2+ {[%clk 00:00:23]} {[%emt 00:00:12]} 116. Kf5 {[%clk
00:00:19]} {[%emt 00:00:04]} Re5+ {[%clk 00:00:27]} {[%emt 00:00:02]} 117. Kg6
{[%clk 00:00:23]} {[%emt 00:00:01]} Kf2 {[%clk 00:00:21]} {[%emt 00:00:10]} 118.
Rb3 {[%clk 00:00:24]} {[%emt 00:00:03]} Re4 {[%clk 00:00:19]} {[%emt 00:00:07]}
119. Bd5 {[%clk 00:00:16]} {[%emt 00:00:13]} Rxg4 {[%clk 00:00:16]} {[%emt
00:00:10]} 120. Rf3+ {[%clk 00:00:18]} {[%emt 00:00:02]} Ke1 {[%clk 00:00:15]}
{[%emt 00:00:06]} 121. Rf5 {[%clk 00:00:20]} {[%emt 00:00:03]} Rd4 {[%clk
00:00:16]} {[%emt 00:00:04]} 122. Kf7 {[%clk 00:00:22]} {[%emt 00:00:02]} Kd2
{[%clk 00:00:18]} {[%emt 00:00:03]} 123. Ke6 {[%clk 00:00:25]} {[%emt
00:00:03]} Rf4 {[%clk 00:00:15]} {[%emt 00:00:08]} 124. Bf3 {[%clk 00:00:23]}
{[%emt 00:00:07]} Rxf5 {[%clk 00:00:19]} {[%emt 00:00:02]} 125. Kxf5 {[%clk
00:00:26]} {[%emt 00:00:02]} Kc1 {[%clk 00:00:22]} {[%emt 00:00:01]} 126. Ke6
{[%clk 00:00:29]} {[%emt 00:00:02]} Kd2 {[%clk 00:00:26]} {[%emt 00:00:02]} 127.
Kf5 {[%clk 00:00:32]} {[%emt 00:00:02]} 1/2-1/2

[Event "Kvibergspelen 2022"]
[Site "Kviberg Park Hotel & Conference, Krutvagen 2, Gothenburg, Sweden"]
[Date "2022.09.30"]
[Round "3.5"]
[White "Tabaa, Ghayth"]
[Black "Hector, Jonny"]
[Result "0-1"]
[TimeControl "15 minutes + 5 seconds per move from move one (Round 1 - 4) / 90 minutes + 30 seconds per move from move one (Round 5 - 8)"]
[BlackTitle "GM"]
[WhiteFideId "7603819"]
[BlackFideId "1700090"]
[WhiteElo "2066"]
[BlackElo "2454"]

1. e4 {[%clk 00:15:07]} {[%emt 00:00:03]} e5 {[%clk 00:15:08]} {[%emt
00:00:02]} 2. Nf3 {[%clk 00:15:07]} {[%emt 00:00:06]} Nc6 {[%clk 00:15:10]}
{[%emt 00:00:01]} 3. d4 {[%clk 00:15:07]} {[%emt 00:00:06]} exd4 {[%clk
00:15:12]} {[%emt 00:00:02]} 4. Nxd4 {[%clk 00:15:08]} {[%emt 00:00:05]} Nf6
{[%clk 00:15:11]} {[%emt 00:00:06]} 5. Nxc6 {[%clk 00:14:07]} {[%emt 00:01:07]}
bxc6 {[%clk 00:15:13]} {[%emt 00:00:02]} 6. e5 {[%clk 00:14:07]} {[%emt
00:00:06]} Qe7 {[%clk 00:15:08]} {[%emt 00:00:08]} 7. Qe2 {[%clk 00:14:08]}
{[%emt 00:00:05]} Nd5 {[%clk 00:15:09]} {[%emt 00:00:03]} 8. h4 {[%clk
00:13:56]} {[%emt 00:00:18]} f6 {[%clk 00:14:18]} {[%emt 00:00:55]} 9. exf6
{[%clk 00:13:21]} {[%emt 00:00:41]} Nxf6 {[%clk 00:14:01]} {[%emt 00:00:21]} 10.
Bg5 {[%clk 00:11:12]} {[%emt 00:02:15]} Rb8 {[%clk 00:12:58]} {[%emt 00:01:08]}
11. b3 {[%clk 00:07:13]} {[%emt 00:04:05]} Qxe2+ {[%clk 00:12:49]} 12. Bxe2
{[%clk 00:07:15]} {[%emt 00:00:16]} Ne4 {[%clk 00:12:49]} {[%emt 00:00:04]} 13.
Bd3 {[%clk 00:05:19]} {[%emt 00:02:02]} Bb4+ {[%clk 00:11:24]} {[%emt
00:01:30]} 14. Ke2 {[%clk 00:04:44]} {[%emt 00:00:40]} d5 {[%clk 00:10:41]}
{[%emt 00:00:48]} 15. Bxe4 {[%clk 00:03:50]} {[%emt 00:01:00]} dxe4 {[%clk
00:10:43]} {[%emt 00:00:02]} 16. c3 {[%clk 00:03:13]} {[%emt 00:00:42]} Ba5
{[%clk 00:09:14]} {[%emt 00:01:34]} 17. b4 {[%clk 00:01:46]} {[%emt 00:01:32]}
Bb6 {[%clk 00:08:38]} {[%emt 00:00:41]} 18. Nd2 {[%clk 00:00:53]} {[%emt
00:00:59]} O-O {[%clk 00:07:28]} {[%emt 00:01:12]} 19. Be3 {[%clk 00:00:48]}
{[%emt 00:00:12]} Bg4+ {[%clk 00:06:51]} {[%emt 00:00:41]} 20. Ke1 {[%clk
00:00:31]} {[%emt 00:00:22]} Bxe3 {[%clk 00:06:04]} {[%emt 00:00:53]} 21. fxe3
{[%clk 00:00:35]} {[%emt 00:00:02]} Rbd8 {[%clk 00:06:04]} {[%emt 00:00:04]} 22.
Rf1 {[%clk 00:00:08]} {[%emt 00:00:32]} Rd3 {[%clk 00:06:07]} {[%emt 00:00:03]}
23. Rxf8+ {[%clk 00:00:08]} {[%emt 00:00:05]} Kxf8 {[%clk 00:06:09]} {[%emt
00:00:02]} 24. Nb3 {[%clk 00:00:06]} {[%emt 00:00:08]} Rxe3+ {[%clk 00:05:49]}
{[%emt 00:00:24]} 25. Kd2 {[%clk 00:00:06]} {[%emt 00:00:05]} Re2+ {[%clk
00:05:49]} {[%emt 00:00:05]} 26. Kc1 {[%clk 00:00:07]} {[%emt 00:00:04]} Rxg2
{[%clk 00:05:26]} {[%emt 00:00:28]} 27. Nd4 {[%clk 00:00:06]} {[%emt 00:00:07]}
e3 {[%clk 00:05:14]} {[%emt 00:00:15]} 0-1